lending/lending_fUSD_20241120
["ID","MTS","AMOUNT","RATE_DAILY","PERIOD"]
[342796995,1732143043488,-405.52783233,0.00054794,120]
[342796996,1732143043497,-500.0,0.00054794,120]
[342796997,1732143043507,-500.0,0.00054794,120]
[342796998,1732143043517,-581.13,0.00054794,120]
[342796999,1732143043526,-500.0,0.00054794,120]
[342797000,1732143043536,-500.0,0.00054794,120]
[342797001,1732143043545,-558.19,0.00054794,120]
[342797002,1732143043555,-500.0,0.00054794,120]
[342797003,1732143043564,-1275.31,0.00054794,120]
[342797004,1732143043574,-500.0,0.00054794,120]
[342797005,1732143043583,-500.0,0.00054794,120]
[342797006,1732143043593,-500.0,0.00054794,120]
[342797007,1732143043603,-500.0,0.00054794,120]
[342797008,1732143043615,-500.0,0.00054794,120]
[342797009,1732143043624,-646.55,0.00054794,120]
[342797010,1732143043635,-500.0,0.00054794,120]
[342797011,1732143043644,-889.52,0.00054794,120]
[342797012,1732143043653,-500.0,0.00054794,120]
[342797013,1732143043664,-1844.67,0.00054794,120]
[342797014,1732143043674,-1345.16,0.00054794,120]
[342797015,1732143043685,-500.0,0.00054794,120]
[342797016,1732143043695,-500.0,0.00054794,120]
[342797017,1732143043705,-500.0,0.00054794,120]
[342797018,1732143043714,-500.0,0.00054794,120]
[342797019,1732143043723,-1354.36,0.00054794,120]
[342797020,1732143043734,-500.0,0.00054794,120]
[342797021,1732143043744,-500.0,0.00054794,120]
[342797022,1732143043754,-500.0,0.00054794,120]
[342797023,1732143043763,-1126.54,0.00054794,120]
[342797024,1732143043772,-500.0,0.00054794,120]
[342797025,1732143043782,-500.0,0.00054794,120]
[342797027,1732143043791,-810.54,0.00054794,120]
[342797029,1732143043801,-1630.49,0.00054794,120]
[342797031,1732143043810,-500.0,0.00054794,120]
[342797032,1732143043820,-500.0,0.00054794,120]
[342797034,1732143043830,-500.0,0.00054794,120]
[342797036,1732143043839,-500.0,0.00054794,120]
[342797038,1732143043848,-1061.11,0.00054794,120]
[342797039,1732143043858,-1539.37,0.00054794,120]
[342797041,1732143043871,-263.56582275,0.00054794,120]
[342797043,1732143043880,-500.0,0.00054794,120]
[342797045,1732143043890,-500.0,0.00054794,120]
[342797047,1732143043900,-500.0,0.00054794,120]
[342797049,1732143043910,-616.53,0.00054794,120]
[342797051,1732143043920,-500.0,0.00054794,120]
[342797053,1732143043929,-500.0,0.00054794,120]
[342797054,1732143043940,-1163.7,0.00054794,120]
[342797056,1732143043950,-500.0,0.00054794,120]
[342797058,1732143043959,-500.0,0.00054794,120]
[342797060,1732143043969,-191.80858,0.00054794,120]
[342797062,1732143043978,-500.0,0.00054794,120]
[342797063,1732143043987,-1697.48,0.00054794,120]
[342797064,1732143043997,-768.83,0.00054794,120]
[342797065,1732143044006,-500.0,0.00054794,120]
[342797066,1732143044016,-500.0,0.00054794,120]
[342797067,1732143044026,-500.0,0.00054794,120]
[342797068,1732143044035,-1494.04,0.00054794,120]
[342797069,1732143044044,-583.76,0.00054794,120]
[342797070,1732143044054,-500.0,0.00054794,120]
[342797071,1732143044063,-500.0,0.00054794,120]
[342797072,1732143044073,-500.0,0.00054794,120]
[342797073,1732143044083,-500.0,0.00054794,120]
[342797074,1732143044092,-500.0,0.00054794,120]
[342797075,1732143044101,-1417.12,0.00054794,120]
[342797076,1732143044110,-503.18237236,0.00054794,120]
[342797077,1732143044120,-500.0,0.00054794,120]
[342797078,1732143044130,-500.0,0.00054794,120]
[342797079,1732143044140,-500.0,0.00054794,120]
[342797080,1732143044150,-500.0,0.00054794,120]
[342797081,1732143044159,-514.86,0.00054794,120]
[342797082,1732143044168,-500.0,0.00054794,120]
[342797083,1732143044178,-580.28,0.00054794,120]
[342797084,1732143044189,-500.0,0.00054794,120]
[342797085,1732143044199,-500.0,0.00054794,120]
[342797086,1732143044208,-500.0,0.00054794,120]
[342797087,1732143044217,-500.0,0.00054794,120]
[342797088,1732143044226,-500.0,0.00054794,120]
[342797089,1732143044236,-625.85,0.00054794,120]
[342797090,1732143044246,-500.0,0.00054794,120]
[342797091,1732143044255,-500.0,0.00054794,120]
[342797092,1732143044266,-500.0,0.00054794,120]
[342797093,1732143044275,-500.0,0.00054794,120]
[342797094,1732143044285,-835.63,0.00054794,120]
[342797095,1732143044295,-500.0,0.00054794,120]
[342797096,1732143044304,-1642.42,0.00054794,7]
[342797097,1732143044314,-500.0,0.00054794,120]
[342797098,1732143044324,-1168.69,0.00054794,120]
[342797099,1732143044334,-500.0,0.00054794,14]
[342797100,1732143044344,-500.0,0.00054794,120]
[342797101,1732143044353,-785.67,0.00054794,120]
[342797102,1732143044363,-526.48,0.00054794,120]
[342797103,1732143044372,-500.0,0.00054794,120]
[342797104,1732143044381,-242.42652087,0.00054794,120]
[342797105,1732143044390,-1791.8,0.00054794,120]
[342797106,1732143044399,-500.0,0.00054794,120]
[342797107,1732143044409,-500.0,0.00054794,120]
[342797108,1732143044419,-499.77145818,0.00054794,2]
[342797109,1732143044430,-500.0,0.00054794,120]
[342797110,1732143044440,-500.0,0.00054794,30]
[342797111,1732143044450,-500.0,0.00054794,120]
[342797112,1732143044460,-500.0,0.00054794,120]
[342797113,1732143044470,-500.0,0.00054794,120]
[342797114,1732143044482,-500.0,0.00054794,120]
[342797115,1732143044492,-764.29,0.00054794,120]
[342797116,1732143044501,-500.0,0.00054794,120]
[342797117,1732143044510,-937.69,0.00054794,120]
[342797118,1732143044520,-830.14,0.00054794,120]
[342797119,1732143044529,-500.0,0.00054794,58]
[342797120,1732143044538,-500.0,0.00054794,120]
[342797121,1732143044547,-500.0,0.00054794,120]
[342797122,1732143044556,-1926.82,0.00054794,120]
[342797123,1732143044565,-1000.0,0.00054794,2]
[342797124,1732143044575,-466.52152884,0.00054794,120]
[342797125,1732143044584,-500.0,0.00054794,30]
[342797126,1732143044593,-500.0,0.00054794,120]
[342797127,1732143044602,-513.97,0.00054794,120]
[342797128,1732143044612,-500.0,0.00054794,120]
[342797129,1732143044621,-1258.94,0.00054794,120]
[342797130,1732143044635,-615.91,0.00054794,120]
[342797131,1732143044645,-501.89335905,0.00054794,3]
[342797132,1732143044655,-500.0,0.00054794,120]
[342797133,1732143044665,-739.53,0.00054794,120]
[342797134,1732143044674,-500.0,0.00054794,120]
[342797135,1732143044684,-2364.09,0.00054794,120]
[342797136,1732143044694,-500.0,0.00054794,120]
[342797137,1732143044703,-500.0,0.00054794,120]
[342797138,1732143044713,-500.0,0.00054794,120]
[342797139,1732143044723,-500.0,0.00054794,120]
[342797140,1732143044735,-1516.8,0.00054794,120]
[342797141,1732143044745,-403.4252726,0.00054794,120]
[342797142,1732143044755,-1222.69,0.00054794,120]
[342797143,1732143044764,-644.03,0.00054794,120]
[342797144,1732143044775,-689.07,0.00054794,120]
[342797145,1732143044785,-500.0,0.00054794,120]
[342797146,1732143044797,-2792.61,0.00054794,120]
[342797147,1732143044807,-500.0,0.00054794,120]
[342797148,1732143044818,-500.0,0.00054794,120]
[342797149,1732143044828,-500.0,0.00054794,120]
[342797150,1732143044838,-500.0,0.00054794,120]
[342797151,1732143044848,-598.66,0.00054794,120]
[342797152,1732143044858,-500.0,0.00054794,120]
[342797153,1732143044870,-500.0,0.00054794,120]
[342797154,1732143044879,-517.71,0.00054794,120]
[342797155,1732143044890,-696.8,0.00054794,120]
[342797156,1732143044899,-500.0,0.00054794,120]
[342797157,1732143044910,-670.6,0.00054794,120]
[342797158,1732143044920,-500.0,0.00054794,120]
[342797159,1732143044930,-1622.41,0.00054794,120]
[342797160,1732143044941,-532.4242227,0.00054794,120]
[342797161,1732143044952,-500.0,0.00054794,120]
[342797162,1732143044962,-732.47,0.00054794,120]
[342797163,1732143044973,-500.0,0.00054794,120]
[342797164,1732143044983,-500.0,0.00054794,120]
[342797165,1732143044992,-500.0,0.00054794,120]
[342797166,1732143045002,-500.0,0.00054794,120]
[342797167,1732143045012,-500.0,0.00054794,120]
[342797168,1732143045021,-500.0,0.00054794,120]
[342797169,1732143045032,-500.0,0.00054794,120]
[342797170,1732143045042,-3752.95,0.00054794,120]
[342797171,1732143045052,-500.0,0.00054794,120]
[342797172,1732143045062,-500.0,0.00054794,120]
[342797173,1732143045072,-694.86,0.00054794,120]
[342797174,1732143045083,-500.0,0.00054794,120]
[342797175,1732143045094,-500.0,0.00054794,120]
[342797176,1732143045104,-527.72,0.00054794,120]
[342797177,1732143045114,-500.0,0.00054794,120]
[342797178,1732143045125,-501.97287568,0.00054794,120]
[342797179,1732143045135,-2754.45,0.00054794,120]
[342797180,1732143045145,-500.0,0.00054794,120]
[342797181,1732143045155,-500.0,0.00054794,60]
[342797182,1732143045165,-571.03138929,0.00054794,120]
[342797183,1732143045175,-501.37380638,0.00054794,120]
[342797184,1732143045185,-500.0,0.00054794,120]
[342797185,1732143045195,-777.0,0.00054794,120]
[342797186,1732143045205,-1552.42,0.00054794,120]
[342797187,1732143045215,-750.37,0.00054794,120]
[342797188,1732143045224,-586.88,0.00054794,120]
[342797189,1732143045235,-500.0,0.00054794,120]
[342797190,1732143045244,-546.79,0.00054794,120]
[342797191,1732143045255,-500.0,0.00054794,120]
[342797192,1732143045367,-500.0,0.00054794,120]
[342797193,1732143045376,-1410.35,0.00054794,120]
[342797194,1732143045386,-622.81,0.00054794,120]
[342797195,1732143045395,-500.0,0.00054794,120]
[342797196,1732143045404,-500.0,0.00054794,120]
[342797197,1732143045415,-1078.42,0.00054794,120]
[342797198,1732143045424,-2348.91,0.00054794,120]
[342797199,1732143045434,-500.0,0.00054794,120]
[342797200,1732143045444,-1803.88,0.00054794,120]
[342797201,1732143045453,-875.42,0.00054794,120]
[342797202,1732143045462,-500.0,0.00054794,120]
[342797203,1732143045471,-500.0,0.00054794,120]
[342797204,1732143045481,-908.45,0.00054794,120]
[342797205,1732143045491,-500.0,0.00054794,120]
[342797206,1732143045500,-1745.98,0.00054794,120]
[342797207,1732143045509,-500.0,0.00054794,120]
[342797208,1732143045520,-643.69,0.00054794,120]
[342797209,1732143045530,-500.0,0.00054794,120]
[342797210,1732143045539,-500.0,0.00054794,120]
[342797211,1732143045548,-659.6,0.00054794,120]
[342797212,1732143045557,-1212.54,0.00054794,120]
[342797213,1732143045566,-430.23436363,0.00054794,120]
[342797214,1732143045575,-2042.25,0.00054794,120]
[342797215,1732143045584,-500.0,0.00054794,120]
[342797216,1732143045593,-828.06,0.00054794,120]
[342797217,1732143045602,-500.0,0.00054794,120]
[342797218,1732143045611,-500.0,0.00054794,120]
[342797219,1732143045619,-500.0,0.00054794,120]
[342797220,1732143045628,-500.0,0.00054794,120]
[342797221,1732143045638,-646.63,0.00054794,120]
[342797222,1732143045647,-806.31,0.00054794,120]
[342797223,1732143045657,-500.0,0.00054794,120]
[342797224,1732143045667,-500.0,0.00054794,120]
[342797225,1732143045675,-500.0,0.00054794,120]
[342797226,1732143045684,-1287.88,0.00054794,120]
[342797227,1732143045693,-500.0,0.00054794,120]
[342797228,1732143045702,-1410.77,0.00054794,120]
[342797229,1732143045711,-500.0,0.00054794,120]
[342797230,1732143045720,-500.0,0.00054794,120]
[342797231,1732143045728,-500.0,0.00054794,120]
[342797232,1732143045738,-623.91,0.00054794,120]
[342797233,1732143045747,-500.0,0.00054794,120]
[342797234,1732143045756,-500.0,0.00054794,120]
[342797235,1732143045765,-500.0,0.00054794,120]
[342797236,1732143045774,-1000.52,0.00054794,120]
[342797237,1732143045783,-766.21,0.00054794,120]
[342797238,1732143045792,-500.0,0.00054794,120]
[342797239,1732143045801,-500.0,0.00054794,120]
[342797240,1732143045810,-352.17566991,0.00054794,120]
[342797241,1732143045819,-500.0,0.00054794,120]
[342797242,1732143045827,-500.0,0.00054794,120]
[342797243,1732143045836,-1013.49,0.00054794,120]
[342797244,1732143045846,-500.0,0.00054794,120]
[342797245,1732143045855,-811.56,0.00054794,120]
[342797246,1732143045865,-500.0,0.00054794,120]
[342797247,1732143045876,-500.0,0.00054794,120]
[342797248,1732143045886,-3361.2,0.00054794,120]
[342797249,1732143045895,-633.81,0.00054794,120]
[342797250,1732143045904,-1185.33,0.00054794,120]
[342797251,1732143045914,-500.0,0.00054794,120]
[342797252,1732143045923,-500.0,0.00054794,120]
[342797253,1732143045932,-838.48,0.00054794,120]
[342797254,1732143045942,-1382.6,0.00054794,120]
[342797255,1732143045951,-500.0,0.00054794,120]
[342797256,1732143045961,-326.62064889,0.00054794,120]
[342797257,1732143045970,-500.0,0.00054794,120]
[342797258,1732143045979,-2198.56,0.00054794,120]
[342797259,1732143045989,-500.0,0.00054794,120]
[342797260,1732143045998,-500.0,0.00054794,120]
[342797261,1732143046007,-500.0,0.00054794,120]
[342797262,1732143046016,-658.16,0.00054794,120]
[342797263,1732143046025,-500.0,0.00054794,120]
[342797264,1732143046034,-500.0,0.00054794,120]
[342797265,1732143046043,-218.073558,0.00054794,120]
[342797266,1732143046052,-500.0,0.00054794,120]
[342797267,1732143046062,-500.0,0.00054794,120]
[342797268,1732143046071,-500.0,0.00054794,120]
[342797269,1732143046080,-500.0,0.00054794,120]
[342797270,1732143046089,-500.0,0.00054794,120]
[342797271,1732143046098,-581.06,0.00054794,120]
[342797272,1732143046107,-500.0,0.00054794,120]
[342797273,1732143046116,-843.03,0.00054794,120]
[342797274,1732143046126,-500.0,0.00054794,120]
[342797275,1732143046137,-500.0,0.00054794,120]
[342797276,1732143046152,-665.72,0.00054794,120]
[342797277,1732143046162,-500.0,0.00054794,120]
[342797278,1732143046171,-789.82,0.00054794,120]
[342797279,1732143046180,-773.4,0.00054794,120]
[342797280,1732143046189,-660.24,0.00054794,120]
[342797281,1732143046199,-500.0,0.00054794,120]
[342797282,1732143046208,-500.0,0.00054794,120]
[342797283,1732143046218,-500.0,0.00054794,120]
[342797284,1732143046227,-504.35,0.00054794,120]
[342797285,1732143046236,-2411.2,0.00054794,120]
[342797286,1732143046245,-500.0,0.00054794,120]
[342797287,1732143046254,-3997.56,0.00054794,120]
[342797288,1732143046263,-500.0,0.00054794,120]
[342797289,1732143046272,-500.0,0.00054794,120]
[342797291,1732143046283,-178.477726,0.00054794,120]
[342797293,1732143046293,-500.0,0.00054794,120]
[342797294,1732143046302,-500.0,0.00054794,120]
[342797295,1732143046311,-220.349852,0.00054794,120]
[342797296,1732143046321,-178.477726,0.00054794,120]
[342797297,1732143046330,-220.349852,0.00054794,120]
[342797298,1732143046339,-500.0,0.00054794,120]
[342797299,1732143046348,-178.477726,0.00054794,120]
[342797300,1732143046357,-155.055593,0.00054794,120]
[342797301,1732143046368,-220.349852,0.00054794,120]
[342797302,1732143046377,-155.055593,0.00054794,120]
[342797303,1732143046388,-500.0,0.00054794,120]
[342797304,1732143046398,-503.87863235,0.00054794,2]
[342797305,1732143046407,-559.66,0.00054794,120]
[342797306,1732143046416,-500.0,0.00054794,120]
[342797307,1732143046425,-1755.1,0.00054794,120]
[342797308,1732143046435,-500.0,0.00054794,120]
[342797309,1732143046444,-500.0,0.00054794,120]
[342797310,1732143046454,-500.0,0.00054794,120]
[342797311,1732143046463,-1021.42,0.00054794,120]
[342797312,1732143046472,-968.59,0.00054794,120]
[342797313,1732143046482,-500.0,0.00054794,120]
[342797314,1732143046491,-283.02206827,0.00054794,120]
[342797315,1732143046500,-500.0,0.00054794,120]
[342797316,1732143046510,-747.74,0.00054794,120]
[342797317,1732143046520,-500.0,0.00054794,120]
[342797318,1732143046530,-500.0,0.00054794,120]
[342797319,1732143046539,-500.0,0.00054794,120]
[342797320,1732143046548,-650.26,0.00054794,120]
[342797321,1732143046557,-500.0,0.00054794,120]
[342797322,1732143046567,-500.91442234,0.00054794,120]
[342797323,1732143046577,-552.66,0.00054794,120]
[342797324,1732143046586,-500.0,0.00054794,120]
[342797325,1732143046599,-500.0,0.00054794,120]
[342797326,1732143046610,-528.53,0.00054794,120]
[342797327,1732143046620,-500.0,0.00054794,120]
[342797328,1732143046629,-661.12,0.00054794,120]
[342797329,1732143046642,-4504.33,0.00054794,120]
[342797330,1732143046651,-500.0,0.00054794,120]
[342797331,1732143046660,-500.0,0.00054794,120]
[342797332,1732143046670,-500.0,0.00054794,120]
[342797333,1732143046681,-500.0,0.00054794,120]
[342797334,1732143046691,-500.0,0.00054794,120]
[342797335,1732143046702,-1414.7,0.00054794,120]
[342797336,1732143046711,-500.0,0.00054794,120]
[342797337,1732143046721,-500.0,0.00054794,120]
[342797338,1732143046731,-1839.1,0.00054794,20]
[342797339,1732143046741,-500.0,0.00054794,120]
[342797340,1732143046752,-600.15,0.00054794,120]
[342797341,1732143046761,-500.0,0.00054794,120]
[342797342,1732143046771,-500.0,0.00054794,120]
[342797343,1732143046779,-500.0,0.00054794,120]
[342797344,1732143046790,-500.0,0.00054794,120]
[342797345,1732143046799,-639.71,0.00054794,120]
[342797346,1732143046808,-1685.02,0.00054794,120]
[342797347,1732143046818,-500.0,0.00054794,120]
[342797348,1732143046827,-500.0,0.00054794,120]
[342797349,1732143046839,-500.0,0.00054794,120]
[342797350,1732143046850,-500.0,0.00054794,120]
[342797351,1732143046860,-500.0,0.00054794,120]
[342797352,1732143046873,-643.92,0.00054794,120]
[342797353,1732143046882,-503.41,0.00054794,120]
[342797354,1732143046892,-1838.85,0.00054794,120]
[342797355,1732143046902,-500.0,0.00054794,120]
[342797356,1732143046911,-777.36,0.00054794,120]
[342797358,1732143046920,-500.0,0.00054794,120]
[342797360,1732143046929,-155.055601,0.00054794,120]
[342797361,1732143046939,-500.0,0.00054794,120]
[342797362,1732143046950,-500.0,0.00054794,120]
[342797363,1732143046959,-1088.52,0.00054794,120]
[342797364,1732143046969,-500.0,0.00054794,120]
[342797365,1732143046978,-500.0,0.00054794,120]
[342797366,1732143046987,-3963.88,0.00054794,120]
[342797367,1732143046996,-500.0,0.00054794,120]
[342797368,1732143047005,-500.0,0.00054794,120]
[342797369,1732143047014,-500.0,0.00054794,120]
[342797370,1732143047024,-500.0,0.00054794,120]
[342797371,1732143047034,-500.0,0.00054794,120]
[342797372,1732143047043,-445.84016616,0.00054794,120]
[342797373,1732143047053,-500.0,0.00054794,120]
[342797374,1732143047062,-500.0,0.00054794,120]
[342797375,1732143047071,-523.34080014,0.00054794,120]
[342797376,1732143047080,-500.0,0.00054794,120]
[342797377,1732143047090,-500.0,0.00054794,120]
[342797378,1732143047099,-500.0,0.00054794,120]
[342797379,1732143047109,-500.0,0.00054794,120]
[342797380,1732143047120,-500.0,0.00054794,120]
[342797381,1732143047128,-508.93,0.00054794,120]
[342797382,1732143047140,-500.0,0.00054794,120]
[342797383,1732143047149,-500.0,0.00054794,120]
[342797384,1732143047158,-500.0,0.00054794,120]
[342797385,1732143047167,-500.0,0.00054794,120]
[342797386,1732143047177,-522.18,0.00054794,120]
[342797387,1732143047186,-500.0,0.00054794,120]
[342797388,1732143047195,-500.0,0.00054794,120]
[342797389,1732143047204,-674.72,0.00054794,120]
[342797390,1732143047214,-500.0,0.00054794,120]
[342797391,1732143047223,-500.0,0.00054794,120]
[342797392,1732143047232,-500.0,0.00054794,120]
[342797393,1732143047242,-500.0,0.00054794,120]
[342797394,1732143047251,-500.0,0.00054794,120]
[342797395,1732143047261,-1573.1,0.00054794,120]
[342797396,1732143047270,-500.0,0.00054794,120]
[342797397,1732143047280,-500.0,0.00054794,120]
[342797398,1732143047289,-500.0,0.00054794,120]
[342797399,1732143047298,-500.0,0.00054794,120]
[342797400,1732143047308,-1344.45,0.00054794,120]
[342797401,1732143047317,-500.0,0.00054794,120]
[342797402,1732143047327,-500.0,0.00054794,120]
[342797403,1732143047336,-695.34,0.00054794,120]
[342797404,1732143047347,-993.23,0.00054794,120]
[342797405,1732143047359,-5030.76,0.00054794,120]
[342797406,1732143047368,-530.39,0.00054794,120]
[342797407,1732143047377,-1007.71,0.00054794,120]
[342797408,1732143047390,-500.0,0.00054794,120]
[342797409,1732143047399,-845.57,0.00054794,120]
[342797410,1732143047410,-1508.05,0.00054794,120]
[342797411,1732143047420,-500.0,0.00054794,120]
[342797412,1732143047431,-500.76651213,0.00054794,120]
[342797413,1732143047440,-500.0,0.00054794,120]
[342797414,1732143047449,-1000.0,0.00054794,30]
[342797415,1732143047458,-1949.27,0.00054794,120]
[342797416,1732143047467,-635.4,0.00054794,120]
[342797417,1732143047476,-317.9485917,0.00054794,120]
[342797418,1732143047485,-3671.8,0.00054794,120]
[342797419,1732143047495,-500.0,0.00054794,120]
[342797420,1732143047503,-500.0,0.00054794,120]
[342797421,1732143047513,-873.15,0.00054794,120]
[342797422,1732143047522,-500.0,0.00054794,120]
[342797423,1732143047531,-500.0,0.00054794,120]
[342797424,1732143047540,-1275.78,0.00054794,120]
[342797425,1732143047550,-500.0,0.00054794,120]
[342797426,1732143047559,-500.0,0.00054794,120]
[342797427,1732143047568,-1300.6,0.00054794,120]
[342797428,1732143047577,-500.0,0.00054794,120]
[342797429,1732143047586,-500.0,0.00054794,120]
[342797430,1732143047595,-500.0,0.00054794,120]
[342797431,1732143047604,-210.928226,0.00054794,120]
[342797432,1732143047612,-260.413472,0.00054794,120]
[342797433,1732143047622,-500.0,0.00054794,120]
[342797434,1732143047631,-1078.43,0.00054794,120]
[342797435,1732143047641,-500.0,0.00054794,120]
[342797436,1732143047651,-1015.57,0.00054794,120]
[342797437,1732143047660,-729.83,0.00054794,120]
[342797438,1732143047669,-500.68898732,0.00054794,120]
[342797439,1732143047679,-500.0,0.00054794,120]
[342797440,1732143047688,-1080.64,0.00054794,120]
[342797441,1732143047697,-562.04,0.00054794,120]
[342797442,1732143047706,-2596.1,0.00054794,120]
[342797443,1732143047718,-500.0,0.00054794,120]
[342797444,1732143047727,-500.0,0.00054794,120]
[342797445,1732143047736,-2222.66,0.00054794,120]
[342797446,1732143047746,-440.68553039,0.00054794,120]
[342797447,1732143047755,-852.14,0.00054794,120]
[342797448,1732143047765,-569.32,0.00054794,120]
[342797449,1732143047774,-500.0,0.00054794,120]
[342797450,1732143047784,-509.24,0.00054794,120]
[342797451,1732143047793,-500.0,0.00054794,120]
[342797452,1732143047802,-700.0,0.00054794,120]
[342797453,1732143047811,-928.5,0.00054794,120]
[342797454,1732143047820,-500.0,0.00054794,120]
[342797455,1732143047829,-500.0,0.00054794,120]
[342797456,1732143047838,-500.0,0.00054794,120]
[342797457,1732143047847,-500.0,0.00054794,120]
[342797458,1732143047856,-500.0,0.00054794,120]
[342797459,1732143047867,-500.0,0.00054794,120]
[342797460,1732143047882,-1129.79,0.00054794,120]
[342797461,1732143047893,-1806.6,0.00054794,120]
[342797462,1732143047902,-500.0,0.00054794,120]
[342797463,1732143047913,-500.0,0.00054794,120]
[342797464,1732143047923,-500.0,0.00054794,120]
[342797465,1732143047932,-2425.19,0.00054794,120]
[342797466,1732143047941,-500.0,0.00054794,120]
[342797467,1732143047954,-625.0,0.00054794,120]
[342797468,1732143047963,-500.0,0.00054794,120]
[342797469,1732143047973,-500.0,0.00054794,120]
[342797470,1732143047982,-500.0,0.00054794,120]
[342797471,1732143047992,-500.0,0.00054794,120]
[342797472,1732143048003,-1018.93,0.00054794,120]
[342797473,1732143048012,-500.0,0.00054794,120]
[342797474,1732143048022,-2073.72,0.00054794,120]
[342797475,1732143048031,-500.0,0.00054794,120]
[342797476,1732143048042,-500.0,0.00054794,120]
[342797477,1732143048051,-500.0,0.00054794,120]
[342797478,1732143048061,-1011.93,0.00054794,120]
[342797479,1732143048070,-500.0,0.00054794,120]
[342797480,1732143048080,-1257.41,0.00054794,120]
[342797481,1732143048089,-500.0,0.00054794,120]
[342797482,1732143048099,-1328.54,0.00054794,120]
[342797483,1732143048108,-893.2,0.00054794,120]
[342797484,1732143048117,-878.56,0.00054794,120]
[342797485,1732143048127,-1954.12,0.00054794,120]
[342797486,1732143048137,-500.0,0.00054794,120]
[342797487,1732143048147,-245.05508,0.00054794,120]
[342797488,1732143048156,-5394.68,0.00054794,120]
[342797489,1732143048165,-1107.33,0.00054794,120]
[342797490,1732143048175,-500.0,0.00054794,120]
[342797491,1732143048184,-500.0,0.00054794,120]
[342797492,1732143048193,-500.0,0.00054794,120]
[342797493,1732143048203,-500.0,0.00054794,120]
[342797494,1732143048216,-500.0,0.00054794,120]
[342797495,1732143048226,-500.0,0.00054794,120]
[342797496,1732143048235,-500.0,0.00054794,60]
[342797497,1732143048244,-1061.98,0.00054794,120]
[342797498,1732143048253,-500.56533889,0.00054794,120]
[342797499,1732143048262,-1061.98,0.00054794,120]
[342797500,1732143048271,-500.0,0.00054794,120]
[342797501,1732143048280,-1061.98,0.00054794,120]
[342797502,1732143048289,-1061.98,0.00054794,120]
[342797503,1732143048298,-1061.98,0.00054794,120]
[342797504,1732143048307,-1061.98,0.00054794,120]
[342797505,1732143048316,-500.0,0.00054794,120]
[342797506,1732143048325,-1061.98,0.00054794,120]
[342797507,1732143048334,-500.0,0.00054794,120]
[342797508,1732143048343,-1061.98,0.00054794,120]
[342797509,1732143048352,-1061.98,0.00054794,120]
[342797510,1732143048361,-543.1,0.00054794,120]
[342797511,1732143048371,-1061.98,0.00054794,120]
[342797512,1732143048380,-1061.98,0.00054794,120]
[342797513,1732143048391,-500.0,0.00054794,120]
[342797514,1732143048400,-1061.98,0.00054794,120]
[342797515,1732143048409,-500.0,0.00054794,120]